[Event "*** Titled Tuesday Blitz"]
[Site "Chess.com"]
[Date "2020.11.10"]
[Round "1"]
[White "Shtembuliak"]
[Black "IANOV0007"]
[Result "1-0"]
[WhiteElo "2864"]
[BlackElo "2432"]
[TimeControl "180+1"]
[EndTime "10:07:19 PST"]
[Termination "Shtembuliak won on time"]

1. c4 {[%clk 0:03:00.9]} 1... d6 {[%clk 0:02:59.4]} 2. Nc3 {[%clk 0:02:58.6]}
2... g6 {[%clk 0:02:59]} 3. d4 {[%clk 0:02:58.4]} 3... Bg7 {[%clk 0:02:58.3]} 4.
e4 {[%clk 0:02:58.5]} 4... c5 {[%clk 0:02:58.1]} 5. Nge2 {[%clk 0:02:52.3]} 5...
Nc6 {[%clk 0:02:56.7]} 6. Be3 {[%clk 0:02:51.5]} 6... Qa5 {[%clk 0:02:55.1]} 7.
d5 {[%clk 0:02:43.6]} 7... Ne5 {[%clk 0:02:53.1]} 8. Ng3 {[%clk 0:02:35.4]} 8...
h5 {[%clk 0:02:48]} 9. Be2 {[%clk 0:02:29.8]} 9... Nf6 {[%clk 0:02:40.5]} 10. f3
{[%clk 0:02:25.1]} 10... h4 {[%clk 0:02:34.9]} 11. Nf1 {[%clk 0:02:24.9]} 11...
h3 {[%clk 0:02:33.8]} 12. g3 {[%clk 0:02:20.8]} 12... a6 {[%clk 0:02:28.8]} 13.
a4 {[%clk 0:02:15.7]} 13... Qb4 {[%clk 0:02:21.9]} 14. Nd2 {[%clk 0:02:04.6]}
14... Qxb2 {[%clk 0:02:16.3]} 15. Rc1 {[%clk 0:02:02.8]} 15... Qb4 {[%clk
0:02:05.7]} 16. O-O {[%clk 0:02:01.9]} 16... Qa5 {[%clk 0:01:53.8]} 17. g4
{[%clk 0:01:58.8]} 17... Bd7 {[%clk 0:01:29.9]} 18. g5 {[%clk 0:01:56.5]} 18...
Nfg4 {[%clk 0:01:17.4]} 19. fxg4 {[%clk 0:01:50.6]} 19... Nxg4 {[%clk
0:01:15.8]} 20. Bxg4 {[%clk 0:01:50.4]} 20... Bxg4 {[%clk 0:01:13.2]} 21. Qxg4
{[%clk 0:01:50.4]} 21... Bxc3 {[%clk 0:01:12.6]} 22. Nf3 {[%clk 0:01:48.5]}
22... Bg7 {[%clk 0:01:08.2]} 23. Rb1 {[%clk 0:01:40.5]} 23... Qc7 {[%clk
0:00:54.7]} 24. e5 {[%clk 0:01:36.2]} 24... dxe5 {[%clk 0:00:51.4]} 25. Nd2
{[%clk 0:01:36.3]} 25... b6 {[%clk 0:00:35.2]} 26. Ne4 {[%clk 0:01:31.8]} 26...
a5 {[%clk 0:00:34]} 27. Rxf7 {[%clk 0:01:28]} 27... Kxf7 {[%clk 0:00:29.8]} 28.
Qe6+ {[%clk 0:01:27.6]} 28... Ke8 {[%clk 0:00:29]} 29. Rxb6 {[%clk 0:01:08.4]}
29... Qd7 {[%clk 0:00:18.7]} 30. Nd6+ {[%clk 0:01:04.1]} 30... Kd8 {[%clk
0:00:15]} 31. Nf7+ {[%clk 0:00:59.6]} 31... Ke8 {[%clk 0:00:13.8]} 32. Nxh8
{[%clk 0:00:24.5]} 32... Qxe6 {[%clk 0:00:09.8]} 33. Rxe6 {[%clk 0:00:23.9]}
33... Bxh8 {[%clk 0:00:09]} 34. Rxg6 {[%clk 0:00:24.5]} 34... Kd7 {[%clk
0:00:08.1]} 35. Kf2 {[%clk 0:00:20.6]} 35... e4 {[%clk 0:00:06.5]} 36. Kg3
{[%clk 0:00:20.2]} 36... Be5+ {[%clk 0:00:05.6]} 37. Kxh3 {[%clk 0:00:20.3]}
37... Rb8 {[%clk 0:00:04]} 38. Bxc5 {[%clk 0:00:19.7]} 38... Rb3+ {[%clk
0:00:03.3]} 39. Kg4 {[%clk 0:00:20]} 39... Rc3 {[%clk 0:00:02.4]} 40. Re6 {[%clk
0:00:19.6]} 1-0

[Event "*** Titled Tuesday Blitz"]
[Site "Chess.com"]
[Date "2020.11.10"]
[Round "1"]
[White "Unknown_IM"]
[Black "PavlovDanila"]
[Result "0-1"]
[WhiteElo "2336"]
[BlackElo "2670"]
[TimeControl "180+1"]
[EndTime "10:07:19 PST"]
[Termination "PavlovDanila won by checkmate"]

1. e4 {[%clk 0:03:00.8]} 1... e6 {[%clk 0:02:59.8]} 2. d4 {[%clk 0:02:56.5]}
2... d5 {[%clk 0:03:00.2]} 3. Bd3 {[%clk 0:02:54.6]} 3... Nf6 {[%clk 0:02:59.8]}
4. e5 {[%clk 0:02:50.1]} 4... Nfd7 {[%clk 0:02:59.5]} 5. Ne2 {[%clk 0:02:49.7]}
5... c5 {[%clk 0:02:59.4]} 6. c3 {[%clk 0:02:49.6]} 6... Nc6 {[%clk 0:02:59.4]}
7. a3 {[%clk 0:02:47.6]} 7... f6 {[%clk 0:02:57.4]} 8. f4 {[%clk 0:02:43.4]}
8... cxd4 {[%clk 0:02:56.1]} 9. cxd4 {[%clk 0:02:40.5]} 9... Qb6 {[%clk
0:02:56]} 10. Nbc3 {[%clk 0:02:36.7]} 10... Be7 {[%clk 0:02:54.6]} 11. Na4
{[%clk 0:02:19.8]} 11... Qc7 {[%clk 0:02:52.7]} 12. Be3 {[%clk 0:02:14.6]} 12...
fxe5 {[%clk 0:02:27.2]} 13. fxe5 {[%clk 0:02:10.7]} 13... O-O {[%clk 0:02:26]}
14. Nf4 {[%clk 0:01:56.4]} 14... Ndxe5 {[%clk 0:02:24]} 15. dxe5 {[%clk
0:01:25.1]} 15... Qxe5 {[%clk 0:02:22]} 16. Qe2 {[%clk 0:01:24.6]} 16... Nd4
{[%clk 0:00:45.1]} 17. Bxd4 {[%clk 0:01:14.8]} 17... Qxd4 {[%clk 0:00:45.1]} 18.
Nxe6 {[%clk 0:00:49.9]} 18... Bxe6 {[%clk 0:00:44.2]} 19. Qxe6+ {[%clk
0:00:44.8]} 19... Kh8 {[%clk 0:00:43.5]} 20. Qh3 {[%clk 0:00:43]} 20... Bh4+
{[%clk 0:00:33.6]} 21. Kd1 {[%clk 0:00:28.3]} 21... Qxa4+ {[%clk 0:00:26.9]} 22.
Bc2 {[%clk 0:00:27.7]} 22... Qf4 {[%clk 0:00:15.5]} 23. Qd3 {[%clk 0:00:23.5]}
23... g6 {[%clk 0:00:15.3]} 24. g3 {[%clk 0:00:19]} 24... Qg4+ {[%clk
0:00:15.6]} 25. Kc1 {[%clk 0:00:18.5]} 25... Bf6 {[%clk 0:00:12.6]} 26. Kb1
{[%clk 0:00:18.8]} 26... Rae8 {[%clk 0:00:10.6]} 27. Ka2 {[%clk 0:00:18.4]}
27... d4 {[%clk 0:00:08.8]} 28. Rae1 {[%clk 0:00:16.9]} 28... Qg5 {[%clk
0:00:08.7]} 29. Bb3 {[%clk 0:00:13.8]} 29... Re3 {[%clk 0:00:06.6]} 30. Qc4
{[%clk 0:00:09.7]} 30... Qe5 {[%clk 0:00:04.8]} 31. Ref1 {[%clk 0:00:08.6]}
31... d3 {[%clk 0:00:03.9]} 32. Re1 {[%clk 0:00:07.4]} 32... Qxb2# {[%clk
0:00:03.3]} 0-1

[Event "*** Titled Tuesday Blitz"]
[Site "Chess.com"]
[Date "2020.11.10"]
[Round "1"]
[White "Matols"]
[Black "Savagelittlemole"]
[Result "0-1"]
[WhiteElo "2267"]
[BlackElo "2583"]
[TimeControl "180+1"]
[EndTime "10:07:19 PST"]
[Termination "Savagelittlemole won by checkmate"]

1. d4 {[%clk 0:03:00.9]} 1... Nf6 {[%clk 0:02:59.4]} 2. c4 {[%clk 0:03:00.9]}
2... g6 {[%clk 0:02:59.8]} 3. g3 {[%clk 0:03:00.8]} 3... Bg7 {[%clk 0:03:00.5]}
4. Bg2 {[%clk 0:03:00.5]} 4... O-O {[%clk 0:03:01.3]} 5. Nc3 {[%clk 0:03:00.6]}
5... d6 {[%clk 0:03:01.7]} 6. Nf3 {[%clk 0:03:00.8]} 6... Nbd7 {[%clk
0:03:01.6]} 7. O-O {[%clk 0:03:00.5]} 7... e5 {[%clk 0:03:01.3]} 8. e4 {[%clk
0:02:58.2]} 8... Re8 {[%clk 0:03:01.5]} 9. h3 {[%clk 0:02:55.1]} 9... exd4
{[%clk 0:02:59.1]} 10. Nxd4 {[%clk 0:02:54.3]} 10... Nc5 {[%clk 0:02:59.3]} 11.
Re1 {[%clk 0:02:47.6]} 11... Ne6 {[%clk 0:02:52.5]} 12. Be3 {[%clk 0:02:43.2]}
12... Nxd4 {[%clk 0:02:52.1]} 13. Bxd4 {[%clk 0:02:42.7]} 13... Bd7 {[%clk
0:02:50]} 14. Qd2 {[%clk 0:02:35.6]} 14... Bc6 {[%clk 0:02:49.9]} 15. Nd5 {[%clk
0:02:27.6]} 15... Bxd5 {[%clk 0:02:48.9]} 16. cxd5 {[%clk 0:02:16.2]} 16... Nd7
{[%clk 0:02:48.7]} 17. Rac1 {[%clk 0:02:13.1]} 17... Rc8 {[%clk 0:02:41.5]} 18.
b4 {[%clk 0:01:43.1]} 18... a6 {[%clk 0:02:26.5]} 19. Kh2 {[%clk 0:01:36.5]}
19... Bxd4 {[%clk 0:02:20.5]} 20. Qxd4 {[%clk 0:01:35.2]} 20... Qf6 {[%clk
0:02:20.4]} 21. Red1 {[%clk 0:01:13.3]} 21... Re7 {[%clk 0:02:14.3]} 22. Qa7
{[%clk 0:01:01.5]} 22... Ne5 {[%clk 0:01:55]} 23. Qxb7 {[%clk 0:00:47]} 23...
Rce8 {[%clk 0:01:52.5]} 24. f4 {[%clk 0:00:31]} 24... Nd7 {[%clk 0:01:28.1]} 25.
Rxc7 {[%clk 0:00:30.4]} 25... Nf8 {[%clk 0:01:20]} 26. Rdc1 {[%clk 0:00:28.4]}
26... Rxe4 {[%clk 0:01:17.5]} 27. Bxe4 {[%clk 0:00:26.7]} 27... Rxe4 {[%clk
0:01:18.4]} 28. R7c2 {[%clk 0:00:23.6]} 28... Qd4 {[%clk 0:01:10]} 29. Qxa6
{[%clk 0:00:21.6]} 29... Qxb4 {[%clk 0:01:10.2]} 30. Qd3 {[%clk 0:00:19.3]}
30... Rd4 {[%clk 0:01:08]} 31. Qf3 {[%clk 0:00:19.1]} 31... Rd2+ {[%clk
0:01:06]} 32. Kh1 {[%clk 0:00:18.5]} 32... Rxc2 {[%clk 0:01:04.7]} 33. Rxc2
{[%clk 0:00:18.2]} 33... Qb1+ {[%clk 0:01:04.6]} 34. Kg2 {[%clk 0:00:14.9]}
34... Qxc2+ {[%clk 0:01:03.6]} 35. Qf2 {[%clk 0:00:15.2]} 35... Qc4 {[%clk
0:00:59.5]} 36. Qd2 {[%clk 0:00:14.2]} 36... Nd7 {[%clk 0:00:58.4]} 37. Kh2
{[%clk 0:00:13.7]} 37... Nc5 {[%clk 0:00:58]} 38. Qb2 {[%clk 0:00:12.9]} 38...
Qxd5 {[%clk 0:00:54]} 39. Qb8+ {[%clk 0:00:12]} 39... Kg7 {[%clk 0:00:54.4]} 40.
Qb2+ {[%clk 0:00:11.8]} 40... f6 {[%clk 0:00:54.8]} 41. Qe2 {[%clk 0:00:06.1]}
41... Qe4 {[%clk 0:00:50.4]} 42. Qb2 {[%clk 0:00:05.2]} 42... Nd3 {[%clk
0:00:48.6]} 43. Qc2 {[%clk 0:00:04.2]} 43... d5 {[%clk 0:00:40.7]} 44. Qc7+
{[%clk 0:00:03.1]} 44... Kh6 {[%clk 0:00:41]} 45. Qc2 {[%clk 0:00:02.6]} 45...
Ne1 {[%clk 0:00:37.3]} 46. Qc1 {[%clk 0:00:01.1]} 46... Qg2# {[%clk 0:00:36.2]}
0-1

[Event "*** Titled Tuesday Blitz"]
[Site "Chess.com"]
[Date "2020.11.10"]
[Round "1"]
[White "SHIVACalypso"]
[Black "Flawless_Fighter"]
[Result "0-1"]
[WhiteElo "2303"]
[BlackElo "2620"]
[TimeControl "180+1"]
[EndTime "10:07:20 PST"]
[Termination "Flawless_Fighter won by resignation"]

1. Nf3 {[%clk 0:02:58.5]} 1... Nf6 {[%clk 0:02:59.2]} 2. c4 {[%clk 0:02:56.9]}
2... e6 {[%clk 0:02:59.2]} 3. g3 {[%clk 0:02:53.2]} 3... d5 {[%clk 0:02:59.3]}
4. Bg2 {[%clk 0:02:53.4]} 4... d4 {[%clk 0:02:53.4]} 5. O-O {[%clk 0:02:50.7]}
5... c5 {[%clk 0:02:52.2]} 6. d3 {[%clk 0:02:36.5]} 6... Nc6 {[%clk 0:02:50]} 7.
Na3 {[%clk 0:02:36.7]} 7... Bd6 {[%clk 0:02:47.4]} 8. Nc2 {[%clk 0:02:36.8]}
8... e5 {[%clk 0:02:42.6]} 9. a3 {[%clk 0:02:36.2]} 9... a5 {[%clk 0:02:41.7]}
10. b3 {[%clk 0:02:25.9]} 10... O-O {[%clk 0:02:41.3]} 11. Rb1 {[%clk
0:02:22.3]} 11... h6 {[%clk 0:02:37.5]} 12. Bd2 {[%clk 0:02:16]} 12... e4 {[%clk
0:02:31.2]} 13. Nfe1 {[%clk 0:02:08.4]} 13... Bf5 {[%clk 0:02:29.1]} 14. b4
{[%clk 0:01:59.5]} 14... axb4 {[%clk 0:02:26.8]} 15. axb4 {[%clk 0:02:00.4]}
15... Re8 {[%clk 0:02:10.9]} 16. bxc5 {[%clk 0:01:56.4]} 16... Bxc5 {[%clk
0:02:09.5]} 17. Rxb7 {[%clk 0:01:54.6]} 17... Ne5 {[%clk 0:02:00.1]} 18. Bb4
{[%clk 0:01:37.4]} 18... Qd6 {[%clk 0:01:41.7]} 19. Bxc5 {[%clk 0:01:34.7]}
19... Qxc5 {[%clk 0:01:42]} 20. Rb5 {[%clk 0:01:31.6]} 20... Qd6 {[%clk
0:01:41]} 21. dxe4 {[%clk 0:01:25.1]} 21... Bxe4 {[%clk 0:01:40.3]} 22. Qxd4
{[%clk 0:01:24.2]} 22... Qxd4 {[%clk 0:01:35.6]} 23. Nxd4 {[%clk 0:01:24]} 23...
Nxc4 {[%clk 0:01:34.2]} 24. Bxe4 {[%clk 0:01:10.2]} 24... Rxe4 {[%clk 0:01:31]}
25. Nef3 {[%clk 0:01:06.5]} 25... Rd8 {[%clk 0:01:22.8]} 26. e3 {[%clk
0:01:05.7]} 26... Ree8 {[%clk 0:01:12]} 27. Rc1 {[%clk 0:01:03.6]} 27... Nd6
{[%clk 0:01:12.4]} 28. Ra5 {[%clk 0:00:59.9]} 28... Rd7 {[%clk 0:01:10.1]} 29.
Nf5 {[%clk 0:00:55.6]} 29... Nde4 {[%clk 0:01:01.2]} 30. Ra2 {[%clk 0:00:48]}
30... Kh7 {[%clk 0:00:59.4]} 31. N5d4 {[%clk 0:00:47.2]} 31... g6 {[%clk
0:00:56.1]} 32. Rac2 {[%clk 0:00:46.5]} 32... Ree7 {[%clk 0:00:53]} 33. Nc6
{[%clk 0:00:43.8]} 33... Re8 {[%clk 0:00:52.7]} 34. Nfd4 {[%clk 0:00:38.2]}
34... Kg7 {[%clk 0:00:50.9]} 35. Na5 {[%clk 0:00:33.7]} 35... Ree7 {[%clk
0:00:49.9]} 36. Nc4 {[%clk 0:00:32.5]} 36... h5 {[%clk 0:00:48.3]} 37. Nb6
{[%clk 0:00:32.6]} 37... Rb7 {[%clk 0:00:48.3]} 38. Na4 {[%clk 0:00:31]} 38...
Ng5 {[%clk 0:00:46.9]} 39. h4 {[%clk 0:00:28.5]} 39... Nge4 {[%clk 0:00:45.2]}
40. Nc5 {[%clk 0:00:27.6]} 40... Nxc5 {[%clk 0:00:44]} 41. Rxc5 {[%clk
0:00:28.5]} 41... Ne4 {[%clk 0:00:43.8]} 42. R5c2 {[%clk 0:00:27]} 42... Red7
{[%clk 0:00:43.5]} 43. Kg2 {[%clk 0:00:26.8]} 43... Nf6 {[%clk 0:00:43.2]} 44.
Kf3 {[%clk 0:00:25.7]} 44... Nd5 {[%clk 0:00:42.1]} 45. Rc5 {[%clk 0:00:25.2]}
45... Nb4 {[%clk 0:00:40.9]} 46. R1c4 {[%clk 0:00:23.9]} 46... Nd3 {[%clk
0:00:40.1]} 47. Ra5 {[%clk 0:00:21.7]} 47... Rb2 {[%clk 0:00:37.5]} 48. Rc2
{[%clk 0:00:21.6]} 48... Ne1+ {[%clk 0:00:37.3]} 49. Ke2 {[%clk 0:00:18.9]}
49... Nxc2 {[%clk 0:00:38.2]} 0-1

[Event "*** Titled Tuesday Blitz"]
[Site "Chess.com"]
[Date "2020.11.10"]
[Round "1"]
[White "Tomekas1"]
[Black "ViditYT"]
[Result "0-1"]
[WhiteElo "2444"]
[BlackElo "2877"]
[TimeControl "180+1"]
[EndTime "10:07:21 PST"]
[Termination "ViditYT won on time"]

1. e4 {[%clk 0:03:00.9]} 1... c5 {[%clk 0:02:59.1]} 2. Nf3 {[%clk 0:03:00.9]}
2... d6 {[%clk 0:02:58.4]} 3. d4 {[%clk 0:03:01.1]} 3... cxd4 {[%clk 0:02:59.2]}
4. Nxd4 {[%clk 0:03:02]} 4... Nf6 {[%clk 0:02:59.6]} 5. Nc3 {[%clk 0:03:02.7]}
5... Nc6 {[%clk 0:02:59.1]} 6. Bg5 {[%clk 0:03:01.1]} 6... e6 {[%clk 0:02:58.2]}
7. Be2 {[%clk 0:02:58.9]} 7... Be7 {[%clk 0:02:56.5]} 8. Qd2 {[%clk 0:02:50]}
8... O-O {[%clk 0:02:52.5]} 9. f3 {[%clk 0:02:47.5]} 9... a6 {[%clk 0:02:35.4]}
10. O-O-O {[%clk 0:02:42.4]} 10... Nxd4 {[%clk 0:02:34]} 11. Qxd4 {[%clk
0:02:43.3]} 11... b5 {[%clk 0:02:34.5]} 12. Kb1 {[%clk 0:02:34.4]} 12... Bb7
{[%clk 0:02:33.4]} 13. g4 {[%clk 0:02:08.8]} 13... Rc8 {[%clk 0:02:26.8]} 14.
Be3 {[%clk 0:02:04.9]} 14... Nd7 {[%clk 0:02:24.6]} 15. g5 {[%clk 0:02:01.7]}
15... Ne5 {[%clk 0:02:22.3]} 16. h4 {[%clk 0:01:55.9]} 16... Qc7 {[%clk
0:02:15.1]} 17. f4 {[%clk 0:01:46.6]} 17... Nc4 {[%clk 0:02:10.6]} 18. Bxc4
{[%clk 0:01:42.2]} 18... Qxc4 {[%clk 0:02:11.5]} 19. Rhe1 {[%clk 0:00:57.2]}
19... b4 {[%clk 0:02:01.3]} 20. Qxc4 {[%clk 0:00:57.3]} 20... Rxc4 {[%clk
0:02:01.8]} 21. Na4 {[%clk 0:00:52]} 21... Bxe4 {[%clk 0:02:01.2]} 22. Rd2
{[%clk 0:00:50.3]} 22... d5 {[%clk 0:01:50.2]} 23. Nb6 {[%clk 0:00:44.6]} 23...
Rc6 {[%clk 0:01:49.8]} 24. Bd4 {[%clk 0:00:43.6]} 24... Bd6 {[%clk 0:01:28.4]}
25. Rf1 {[%clk 0:00:42.4]} 25... Rd8 {[%clk 0:01:03.7]} 26. h5 {[%clk
0:00:41.7]} 26... Bc7 {[%clk 0:00:58]} 27. Na4 {[%clk 0:00:40.6]} 27... Rc8
{[%clk 0:00:57.9]} 28. Rff2 {[%clk 0:00:36.6]} 28... a5 {[%clk 0:00:34.5]} 29.
h6 {[%clk 0:00:35.8]} 29... gxh6 {[%clk 0:00:34]} 30. gxh6 {[%clk 0:00:35.6]}
30... Kf8 {[%clk 0:00:33.3]} 31. Nc5 {[%clk 0:00:23.4]} 31... Bg6 {[%clk
0:00:33.3]} 32. Nd7+ {[%clk 0:00:21.6]} 32... Ke7 {[%clk 0:00:32.8]} 33. Ne5
{[%clk 0:00:20.6]} 33... Bxe5 {[%clk 0:00:32.8]} 34. fxe5 {[%clk 0:00:19.4]}
34... a4 {[%clk 0:00:33.3]} 35. Kc1 {[%clk 0:00:19]} 35... b3 {[%clk 0:00:33]}
36. axb3 {[%clk 0:00:17.8]} 36... axb3 {[%clk 0:00:33.9]} 37. c3 {[%clk
0:00:14.3]} 37... Ra8 {[%clk 0:00:34.4]} 38. Rd1 {[%clk 0:00:12.7]} 38... Ra2
{[%clk 0:00:26.4]} 39. Re1 {[%clk 0:00:04.8]} 39... Kd7 {[%clk 0:00:25.8]} 40.
Kd1 {[%clk 0:00:03.9]} 40... Rca6 {[%clk 0:00:25.2]} 41. Kc1 {[%clk 0:00:01.1]}
41... Kc6 {[%clk 0:00:25]} 0-1

[Event "*** Titled Tuesday Blitz"]
[Site "Chess.com"]
[Date "2020.11.10"]
[Round "1"]
[White "pastouche06"]
[Black "julinha97"]
[Result "1-0"]
[WhiteElo "2537"]
[BlackElo "2166"]
[TimeControl "180+1"]
[EndTime "10:07:22 PST"]
[Termination "pastouche06 won by checkmate"]

1. d4 {[%clk 0:03:00.5]} 1... Nf6 {[%clk 0:02:59.6]} 2. c4 {[%clk 0:02:59.4]}
2... g6 {[%clk 0:02:59.6]} 3. f3 {[%clk 0:02:58.7]} 3... d5 {[%clk 0:02:58.7]}
4. cxd5 {[%clk 0:02:59.1]} 4... Nxd5 {[%clk 0:02:59.6]} 5. e4 {[%clk 0:02:59.6]}
5... Nb6 {[%clk 0:02:59.5]} 6. Nc3 {[%clk 0:03:00.1]} 6... Bg7 {[%clk
0:02:59.5]} 7. Be3 {[%clk 0:03:00.6]} 7... O-O {[%clk 0:02:58.2]} 8. Qd2 {[%clk
0:03:00.2]} 8... e5 {[%clk 0:02:57.4]} 9. d5 {[%clk 0:03:00.1]} 9... c6 {[%clk
0:02:57.2]} 10. Rd1 {[%clk 0:02:59.4]} 10... cxd5 {[%clk 0:02:55.3]} 11. exd5
{[%clk 0:03:00.3]} 11... N8d7 {[%clk 0:02:31.1]} 12. h4 {[%clk 0:02:58.5]} 12...
Nf6 {[%clk 0:02:27.6]} 13. Nh3 {[%clk 0:02:45.9]} 13... Ne8 {[%clk 0:02:21.9]}
14. h5 {[%clk 0:02:40.3]} 14... Nd6 {[%clk 0:02:20.8]} 15. b3 {[%clk 0:02:17.5]}
15... Bxh3 {[%clk 0:02:17.4]} 16. Rxh3 {[%clk 0:02:13.4]} 16... Nf5 {[%clk
0:02:15.6]} 17. hxg6 {[%clk 0:02:02.3]} 17... hxg6 {[%clk 0:02:11.4]} 18. Bc5
{[%clk 0:02:01.7]} 18... Re8 {[%clk 0:02:00.4]} 19. Bb5 {[%clk 0:01:55.8]} 19...
Nd7 {[%clk 0:01:56.6]} 20. Bf2 {[%clk 0:01:42.6]} 20... a6 {[%clk 0:01:55.4]}
21. Bd3 {[%clk 0:01:37.4]} 21... Nd4 {[%clk 0:01:51.4]} 22. Ne4 {[%clk
0:01:34.8]} 22... Nf6 {[%clk 0:01:35.3]} 23. Nxf6+ {[%clk 0:01:20.6]} 23... Qxf6
{[%clk 0:01:33.5]} 24. Be4 {[%clk 0:01:15.9]} 24... Rac8 {[%clk 0:01:29.2]} 25.
Rc1 {[%clk 0:01:14.2]} 25... Qb6 {[%clk 0:01:17]} 26. Be3 {[%clk 0:01:00.9]}
26... f5 {[%clk 0:01:03.8]} 27. Bd3 {[%clk 0:01:00.3]} 27... Rxc1+ {[%clk
0:00:58.7]} 28. Qxc1 {[%clk 0:00:59.2]} 28... Qd6 {[%clk 0:00:53.1]} 29. Kf2
{[%clk 0:00:54.3]} 29... b5 {[%clk 0:00:52.5]} 30. a4 {[%clk 0:00:32.8]} 30...
e4 {[%clk 0:00:51.9]} 31. Bf1 {[%clk 0:00:28.6]} 31... exf3 {[%clk 0:00:49.6]}
32. gxf3 {[%clk 0:00:25.6]} 32... Nxb3 {[%clk 0:00:43.1]} 33. Qc2 {[%clk
0:00:23.2]} 33... bxa4 {[%clk 0:00:43]} 34. Bc4 {[%clk 0:00:23.3]} 34... f4
{[%clk 0:00:34.7]} 35. Bc1 {[%clk 0:00:14.6]} 35... Nxc1 {[%clk 0:00:32.9]} 36.
Qxc1 {[%clk 0:00:14.5]} 36... Qc5+ {[%clk 0:00:32.7]} 37. Kg2 {[%clk 0:00:14.9]}
37... Re2+ {[%clk 0:00:29.1]} 38. Kh1 {[%clk 0:00:13.3]} 38... Qf2 {[%clk
0:00:20.1]} 39. d6+ {[%clk 0:00:13]} 39... Kf8 {[%clk 0:00:20.8]} 40. Qxf4+
{[%clk 0:00:13.1]} 40... Ke8 {[%clk 0:00:19.5]} 41. Qf7+ {[%clk 0:00:12.8]}
41... Kd8 {[%clk 0:00:19.5]} 42. Qc7+ {[%clk 0:00:11.8]} 42... Ke8 {[%clk
0:00:19.6]} 43. d7+ {[%clk 0:00:12.7]} 43... Ke7 {[%clk 0:00:18.5]} 44. d8=Q#
{[%clk 0:00:13.6]} 1-0

[Event "*** Titled Tuesday Blitz"]
[Site "Chess.com"]
[Date "2020.11.10"]
[Round "1"]
[White "ZenBull"]
[Black "PIwan"]
[Result "0-1"]
[WhiteElo "2151"]
[BlackElo "2532"]
[TimeControl "180+1"]
[EndTime "10:07:22 PST"]
[Termination "PIwan won on time"]

1. Nf3 {[%clk 0:03:00.9]} 1... e6 {[%clk 0:02:59.4]} 2. c4 {[%clk 0:03:00.1]}
2... f5 {[%clk 0:02:59.1]} 3. g3 {[%clk 0:02:53.9]} 3... Nf6 {[%clk 0:02:58.9]}
4. Bg2 {[%clk 0:02:54.2]} 4... d5 {[%clk 0:02:59.2]} 5. d3 {[%clk 0:02:52.2]}
5... Bd6 {[%clk 0:02:51.8]} 6. O-O {[%clk 0:02:51.1]} 6... O-O {[%clk
0:02:51.8]} 7. Nbd2 {[%clk 0:02:49.9]} 7... Nc6 {[%clk 0:02:51.4]} 8. b3 {[%clk
0:02:47.5]} 8... d4 {[%clk 0:02:47.2]} 9. e4 {[%clk 0:02:41.9]} 9... dxe3 {[%clk
0:02:44.6]} 10. fxe3 {[%clk 0:02:41.2]} 10... e5 {[%clk 0:02:45.1]} 11. Qe2
{[%clk 0:02:31]} 11... Bc5 {[%clk 0:02:39.5]} 12. h3 {[%clk 0:02:19.1]} 12...
Qe7 {[%clk 0:02:26.5]} 13. Re1 {[%clk 0:02:10.8]} 13... e4 {[%clk 0:02:13.8]}
14. dxe4 {[%clk 0:02:10.1]} 14... fxe4 {[%clk 0:02:14.7]} 15. Nh2 {[%clk
0:02:02.9]} 15... Qe5 {[%clk 0:02:10.1]} 16. Rb1 {[%clk 0:01:51]} 16... Qxg3
{[%clk 0:02:08.6]} 17. Ndf1 {[%clk 0:01:49.6]} 17... Qg5 {[%clk 0:02:04.4]} 18.
Bb2 {[%clk 0:01:48.2]} 18... Bxh3 {[%clk 0:02:01.4]} 19. Kh1 {[%clk 0:01:44.9]}
19... Ng4 {[%clk 0:01:50.5]} 20. Nxg4 {[%clk 0:01:20.6]} 20... Bxg4 {[%clk
0:01:49.8]} 21. Qc2 {[%clk 0:01:13.5]} 21... Qh4+ {[%clk 0:01:45.5]} 22. Kg1
{[%clk 0:01:13.8]} 22... Bf3 {[%clk 0:01:38.5]} 23. Bxf3 {[%clk 0:00:56.9]}
23... exf3 {[%clk 0:01:33.1]} 24. Qf2 {[%clk 0:00:54.3]} 24... Qg4+ {[%clk
0:01:32]} 25. Kh1 {[%clk 0:00:50.9]} 25... Rf5 {[%clk 0:01:26.9]} 26. Nh2 {[%clk
0:00:50.5]} 26... Qh5 {[%clk 0:01:08.3]} 27. Rg1 {[%clk 0:00:46.4]} 27... g6
{[%clk 0:01:07.1]} 28. Rg3 {[%clk 0:00:41.6]} 28... Bd6 {[%clk 0:01:01.4]} 29.
Rbg1 {[%clk 0:00:26.9]} 29... Bxg3 {[%clk 0:00:58.6]} 30. Rxg3 {[%clk
0:00:27.8]} 30... Raf8 {[%clk 0:00:54.6]} 31. Kg1 {[%clk 0:00:20.6]} 31... Rg5
{[%clk 0:00:44.7]} 32. Nf1 {[%clk 0:00:16.7]} 32... Ne5 {[%clk 0:00:20.5]} 33.
Bxe5 {[%clk 0:00:13]} 33... Rxe5 {[%clk 0:00:21.4]} 34. Nd2 {[%clk 0:00:10.8]}
34... Rg5 {[%clk 0:00:20.9]} 35. Nf1 {[%clk 0:00:09]} 35... Qh4 {[%clk
0:00:19.8]} 36. Rxg5 {[%clk 0:00:05.7]} 36... Qxg5+ {[%clk 0:00:20.7]} 37. Kh1
{[%clk 0:00:04.8]} 37... Qg4 {[%clk 0:00:16.8]} 38. Nh2 {[%clk 0:00:03.6]} 38...
Qe4 {[%clk 0:00:16.5]} 0-1